[Event "Titled Tuesday Blitz September 21 2021"]
[White "Srihari L R"]
[Black "Fernandez Diaz, Cristian"]
[WhiteFideId "46617116"]
[BlackFideId "22256687"]
[WhiteElo "2121"]
[BlackElo "2263"]
[Result "1-0"]
[Round "01"]
[TimeControl "180+1"]
[Date "2021.09.21"]
[WhiteClock "0:01:08"]
[BlackClock "0:01:26"]

1. Nf3 {[%clk 0:02:46]}  c5 {[%clk 0:02:58]} 2. c4 {[%clk 0:02:46]}  Nc6 {[%clk 0:02:58]} 3. Nc3 {[%clk 0:02:46]}  g6 {[%clk 0:02:58]} 4. d4 {[%clk 0:02:45]}  cxd4 {[%clk 0:02:58]} 5. Nxd4 {[%clk 0:02:46]}  Bg7 {[%clk 0:02:59]} 6. e3 {[%clk 0:02:45]}  Nf6 {[%clk 0:02:58]} 7. Be2 {[%clk 0:02:44]}  O-O {[%clk 0:02:58]} 8. O-O {[%clk 0:02:44]}  d6 {[%clk 0:02:58]} 9. b3 {[%clk 0:02:44]}  Nxd4 {[%clk 0:02:47]} 10. exd4 {[%clk 0:02:43]}  d5 {[%clk 0:02:48]} 11. Bb2 {[%clk 0:02:41]}  Bf5 {[%clk 0:02:40]} 12. Rc1 {[%clk 0:02:20]}  Qd7 {[%clk 0:02:32]} 13. Bf3 {[%clk 0:02:13]}  dxc4 {[%clk 0:02:22]} 14. bxc4 {[%clk 0:02:12]}  Rac8 {[%clk 0:02:22]} 15. Qb3 {[%clk 0:02:02]}  Bd3 {[%clk 0:02:10]} 16. Rfd1 {[%clk 0:01:57]}  Bxc4 {[%clk 0:02:09]} 17. Qxb7 {[%clk 0:01:45]}  Qxb7 {[%clk 0:02:08]} 18. Bxb7 {[%clk 0:01:46]}  Rb8 {[%clk 0:02:06]} 19. Na4 {[%clk 0:01:43]}  Bxa2 {[%clk 0:01:50]} 20. Rc7 {[%clk 0:01:26]}  Bb3 {[%clk 0:01:46]} 21. Ra1 {[%clk 0:01:25]}  Ne8 {[%clk 0:01:35]} 22. Rxe7 {[%clk 0:01:18]}  Bf6 {[%clk 0:01:33]} 23. Rd7 {[%clk 0:01:15]}  Be6 {[%clk 0:01:31]} 24. Bc6 {[%clk 0:01:10]}  Bxd7 {[%clk 0:01:27]} 25. Bxd7 {[%clk 0:01:10]}  Nd6 {[%clk 0:01:26]} 26. Ba3 {[%clk 0:01:08]} 1-0


[Site "https://www.chess.com"]

[Event "Titled Tuesday Blitz September 21 2021"]
[White "Suarez Gomez, Julio"]
[Black "Dudzinski, Pawel"]
[WhiteFideId "22275991"]
[BlackFideId "1117890"]
[WhiteElo "2376"]
[BlackElo "2193"]
[Result "1-0"]
[Round "01"]
[TimeControl "180+1"]
[Date "2021.09.21"]
[WhiteClock "0:00:56"]
[BlackClock "0:00:25"]

1. e4 {[%clk 0:03:00]}  c6 {[%clk 0:02:59]} 2. d4 {[%clk 0:03:00]}  d5 {[%clk 0:03:00]} 3. Nc3 {[%clk 0:02:59]}  dxe4 {[%clk 0:02:59]} 4. Nxe4 {[%clk 0:03:00]}  Nf6 {[%clk 0:03:00]} 5. Nxf6+ {[%clk 0:03:00]}  exf6 {[%clk 0:03:01]} 6. c3 {[%clk 0:02:59]}  Bd6 {[%clk 0:02:59]} 7. Bd3 {[%clk 0:03:00]}  O-O {[%clk 0:02:56]} 8. Qc2 {[%clk 0:03:00]}  Re8+ {[%clk 0:02:53]} 9. Ne2 {[%clk 0:03:01]}  h5 {[%clk 0:02:53]} 10. O-O {[%clk 0:02:57]}  h4 {[%clk 0:02:49]} 11. h3 {[%clk 0:02:57]}  Nd7 {[%clk 0:02:46]} 12. Be3 {[%clk 0:02:57]}  Nf8 {[%clk 0:02:45]} 13. Rad1 {[%clk 0:02:55]}  Qc7 {[%clk 0:02:44]} 14. c4 {[%clk 0:02:22]}  c5 {[%clk 0:02:27]} 15. dxc5 {[%clk 0:02:17]}  Bxc5 {[%clk 0:02:28]} 16. Bxc5 {[%clk 0:02:13]}  Qxc5 {[%clk 0:02:29]} 17. Nc3 {[%clk 0:02:13]}  Be6 {[%clk 0:02:16]} 18. b3 {[%clk 0:02:04]}  Rad8 {[%clk 0:02:09]} 19. Be4 {[%clk 0:02:03]}  f5 {[%clk 0:02:02]} 20. Bxb7 {[%clk 0:02:01]}  Ng6 {[%clk 0:01:51]} 21. Bd5 {[%clk 0:01:55]}  Nf4 {[%clk 0:01:49]} 22. Bxe6 {[%clk 0:01:43]}  fxe6 {[%clk 0:01:49]} 23. Ne2 {[%clk 0:01:42]}  Nh5 {[%clk 0:01:33]} 24. Rxd8 {[%clk 0:01:36]}  Rxd8 {[%clk 0:01:33]} 25. Rd1 {[%clk 0:01:36]}  Rd6 {[%clk 0:01:25]} 26. Rxd6 {[%clk 0:01:32]}  Qxd6 {[%clk 0:01:26]} 27. c5 {[%clk 0:01:32]}  Qc7 {[%clk 0:01:20]} 28. c6 {[%clk 0:01:29]}  Nf6 {[%clk 0:01:17]} 29. Nd4 {[%clk 0:01:24]}  Nd5 {[%clk 0:01:08]} 30. Nxe6 {[%clk 0:01:09]}  Qe5 {[%clk 0:01:07]} 31. c7 {[%clk 0:01:09]}  Qe1+ {[%clk 0:00:47]} 32. Kh2 {[%clk 0:01:08]}  Qe5+ {[%clk 0:00:42]} 33. f4 {[%clk 0:01:07]}  Nxf4 {[%clk 0:00:42]} 34. c8=Q+ {[%clk 0:01:07]}  Kh7 {[%clk 0:00:41]} 35. Ng5+ {[%clk 0:01:01]}  Kh6 {[%clk 0:00:39]} 36. Q8xf5 {[%clk 0:00:57]}  Nxh3+ {[%clk 0:00:25]} 37. Qxe5 {[%clk 0:00:56]} 1-0


[Site "https://www.chess.com"]

[Event "Titled Tuesday Blitz September 21 2021"]
[White "Tymrakiewicz, Rafal"]
[Black "Stoyanov, Tsvetan"]
[WhiteFideId "1108832"]
[BlackFideId "2917173"]
[WhiteElo "2172"]
[BlackElo "2191"]
[Result "0-1"]
[Round "01"]
[TimeControl "180+1"]
[Date "2021.09.21"]
[WhiteClock "0:00:02"]
[BlackClock "0:00:08"]

1. e4 {[%clk 0:02:52]}  c5 {[%clk 0:02:59]} 2. c3 {[%clk 0:02:52]}  d6 {[%clk 0:03:00]} 3. d4 {[%clk 0:02:50]}  Nf6 {[%clk 0:02:59]} 4. Nd2 {[%clk 0:02:50]}  Nc6 {[%clk 0:02:58]} 5. Ngf3 {[%clk 0:02:49]}  g6 {[%clk 0:02:58]} 6. d5 {[%clk 0:02:44]}  Nb8 {[%clk 0:02:54]} 7. Bc4 {[%clk 0:02:38]}  Bg7 {[%clk 0:02:54]} 8. O-O {[%clk 0:02:37]}  Nbd7 {[%clk 0:02:50]} 9. a4 {[%clk 0:02:34]}  O-O {[%clk 0:02:49]} 10. Re1 {[%clk 0:02:34]}  Qc7 {[%clk 0:02:48]} 11. Nf1 {[%clk 0:02:32]}  Ne5 {[%clk 0:02:47]} 12. Nxe5 {[%clk 0:02:32]}  dxe5 {[%clk 0:02:48]} 13. Bg5 {[%clk 0:02:30]}  Ne8 {[%clk 0:02:47]} 14. Ne3 {[%clk 0:02:17]}  Nd6 {[%clk 0:02:46]} 15. Bd3 {[%clk 0:02:17]}  h6 {[%clk 0:02:39]} 16. Bh4 {[%clk 0:02:16]}  f5 {[%clk 0:02:33]} 17. f3 {[%clk 0:01:57]}  c4 {[%clk 0:02:26]} 18. Bc2 {[%clk 0:01:54]}  f4 {[%clk 0:02:22]} 19. Nf1 {[%clk 0:01:44]}  g5 {[%clk 0:02:22]} 20. Bf2 {[%clk 0:01:44]}  Bf6 {[%clk 0:02:10]} 21. Nd2 {[%clk 0:01:40]}  b6 {[%clk 0:02:07]} 22. b4 {[%clk 0:01:32]}  cxb3 {[%clk 0:01:51]} 23. Bxb3 {[%clk 0:01:31]}  Ba6 {[%clk 0:01:51]} 24. c4 {[%clk 0:01:26]}  Rac8 {[%clk 0:01:35]} 25. Rc1 {[%clk 0:01:13]}  Qd7 {[%clk 0:01:35]} 26. a5 {[%clk 0:00:55]}  Rb8 {[%clk 0:01:28]} 27. axb6 {[%clk 0:00:46]}  axb6 {[%clk 0:01:27]} 28. Ra1 {[%clk 0:00:45]}  Bc8 {[%clk 0:01:25]} 29. Ba4 {[%clk 0:00:43]}  Qc7 {[%clk 0:01:22]} 30. Qb3 {[%clk 0:00:40]}  Kg7 {[%clk 0:01:16]} 31. Reb1 {[%clk 0:00:38]}  Bd7 {[%clk 0:00:52]} 32. Bxd7 {[%clk 0:00:27]}  Qxd7 {[%clk 0:00:52]} 33. Bxb6 {[%clk 0:00:24]}  Nc8 {[%clk 0:00:49]} 34. c5 {[%clk 0:00:23]}  g4 {[%clk 0:00:50]} 35. fxg4 {[%clk 0:00:21]}  Qxg4 {[%clk 0:00:49]} 36. Qf3 {[%clk 0:00:22]}  Qg6 {[%clk 0:00:48]} 37. Nc4 {[%clk 0:00:18]}  Kh7 {[%clk 0:00:41]} 38. Bc7 {[%clk 0:00:18]}  Rxb1+ {[%clk 0:00:40]} 39. Rxb1 {[%clk 0:00:19]}  Qg7 {[%clk 0:00:32]} 40. d6 {[%clk 0:00:18]}  exd6 {[%clk 0:00:31]} 41. cxd6 {[%clk 0:00:19]}  Qd7 {[%clk 0:00:22]} 42. Qh3 {[%clk 0:00:17]}  Qc6 {[%clk 0:00:20]} 43. Qf5+ {[%clk 0:00:16]}  Kg7 {[%clk 0:00:17]} 44. Nd2 {[%clk 0:00:08]}  Qc5+ {[%clk 0:00:14]} 45. Kh1 {[%clk 0:00:07]}  Nxd6 {[%clk 0:00:13]} 46. Bxd6 {[%clk 0:00:06]}  Qxd6 {[%clk 0:00:14]} 47. Rb7+ {[%clk 0:00:07]}  Rf7 {[%clk 0:00:14]} 48. Rxf7+ {[%clk 0:00:07]}  Kxf7 {[%clk 0:00:15]} 49. Qh7+ {[%clk 0:00:06]}  Bg7 {[%clk 0:00:16]} 50. Qf5+ {[%clk 0:00:05]}  Kg8 {[%clk 0:00:16]} 51. Nf3 {[%clk 0:00:05]}  Qd1+ {[%clk 0:00:16]} 52. Ng1 {[%clk 0:00:05]}  Qd6 {[%clk 0:00:09]} 53. h3 {[%clk 0:00:05]}  Qf6 {[%clk 0:00:08]} 54. Qg4 {[%clk 0:00:04]}  Kf7 {[%clk 0:00:07]} 55. Nf3 {[%clk 0:00:04]}  Qg6 {[%clk 0:00:08]} 56. Qd7+ {[%clk 0:00:03]}  Kg8 {[%clk 0:00:08]} 57. Qc8+ {[%clk 0:00:02]}  Kh7 {[%clk 0:00:08]} 58. Qd7 {[%clk 0:00:02]}  Qxe4 {[%clk 0:00:08]} 0-1


[Site "https://www.chess.com"]

[Event "Titled Tuesday Blitz September 21 2021"]
[White "Vignesh, N R"]
[Black "Reprintsev, Alexander"]
[WhiteFideId "25012215"]
[BlackFideId "14100541"]
[WhiteElo "2395"]
[BlackElo "2126"]
[Result "1-0"]
[Round "01"]
[TimeControl "180+1"]
[Date "2021.09.21"]
[WhiteClock "0:00:17"]
[BlackClock "0:00:04"]

1. e4 {[%clk 0:02:21]}  d5 {[%clk 0:02:58]} 2. exd5 {[%clk 0:02:21]}  Qxd5 {[%clk 0:02:58]} 3. Nc3 {[%clk 0:02:21]}  Qa5 {[%clk 0:02:58]} 4. d4 {[%clk 0:02:21]}  Nf6 {[%clk 0:02:58]} 5. Nf3 {[%clk 0:02:21]}  Nc6 {[%clk 0:02:58]} 6. d5 {[%clk 0:02:10]}  Nb4 {[%clk 0:02:57]} 7. Bc4 {[%clk 0:02:09]}  e6 {[%clk 0:02:48]} 8. dxe6 {[%clk 0:02:07]}  Bxe6 {[%clk 0:02:49]} 9. Bxe6 {[%clk 0:02:06]}  fxe6 {[%clk 0:02:50]} 10. O-O {[%clk 0:02:03]}  Bd6 {[%clk 0:02:50]} 11. a3 {[%clk 0:02:01]}  Nc6 {[%clk 0:02:36]} 12. Ng5 {[%clk 0:01:53]}  Qe5 {[%clk 0:02:25]} 13. g3 {[%clk 0:01:50]}  Qf5 {[%clk 0:01:44]} 14. Re1 {[%clk 0:01:43]}  e5 {[%clk 0:01:44]} 15. Nd5 {[%clk 0:01:27]}  Nxd5 {[%clk 0:01:28]} 16. Qxd5 {[%clk 0:01:26]}  O-O-O {[%clk 0:00:59]} 17. Qf7 {[%clk 0:01:10]}  Qxc2 {[%clk 0:00:53]} 18. Be3 {[%clk 0:01:06]}  Kb8 {[%clk 0:00:46]} 19. Rec1 {[%clk 0:01:01]}  Qe2 {[%clk 0:00:37]} 20. Qb3 {[%clk 0:00:48]}  Nd4 {[%clk 0:00:26]} 21. Bxd4 {[%clk 0:00:44]}  exd4 {[%clk 0:00:26]} 22. Nf7 {[%clk 0:00:39]}  Rhf8 {[%clk 0:00:26]} 23. Re1 {[%clk 0:00:34]}  Qg4 {[%clk 0:00:14]} 24. Nxd8 {[%clk 0:00:32]}  Rxd8 {[%clk 0:00:15]} 25. Qd3 {[%clk 0:00:31]}  h5 {[%clk 0:00:12]} 26. Re4 {[%clk 0:00:30]}  Qh3 {[%clk 0:00:11]} 27. Rh4 {[%clk 0:00:29]}  Qe6 {[%clk 0:00:09]} 28. Rxd4 {[%clk 0:00:28]}  a6 {[%clk 0:00:08]} 29. Rd1 {[%clk 0:00:27]}  Re8 {[%clk 0:00:07]} 30. Qc4 {[%clk 0:00:23]}  Qe7 {[%clk 0:00:07]} 31. h4 {[%clk 0:00:21]}  g5 {[%clk 0:00:06]} 32. hxg5 {[%clk 0:00:21]}  Qxg5 {[%clk 0:00:07]} 33. Rd5 {[%clk 0:00:21]}  Qg6 {[%clk 0:00:06]} 34. Qd3 {[%clk 0:00:20]}  Qf7 {[%clk 0:00:05]} 35. b4 {[%clk 0:00:18]}  h4 {[%clk 0:00:04]} 36. Rxd6 {[%clk 0:00:18]}  cxd6 {[%clk 0:00:04]} 37. Qxd6+ {[%clk 0:00:19]}  Ka8 {[%clk 0:00:04]} 38. Qd5 {[%clk 0:00:19]}  Qg7 {[%clk 0:00:03]} 39. Qf3 {[%clk 0:00:19]}  hxg3 {[%clk 0:00:03]} 40. fxg3 {[%clk 0:00:19]}  Rg8 {[%clk 0:00:02]} 41. Rd3 {[%clk 0:00:19]}  Qa1+ {[%clk 0:00:02]} 42. Kg2 {[%clk 0:00:19]}  Qh8 {[%clk 0:00:03]} 43. Rd6 {[%clk 0:00:18]}  Rb8 {[%clk 0:00:04]} 44. Rxa6# {[%clk 0:00:17]} 1-0


[Site "https://www.chess.com"]

[Event "Titled Tuesday Blitz September 21 2021"]
[White "Vivas Zamora, Fabian Ernesto"]
[Black "Moskalenko, Alexander"]
[WhiteFideId "3902480"]
[BlackFideId "4155351"]
[WhiteElo "1966"]
[BlackElo "2515"]
[Result "0-1"]
[Round "01"]
[TimeControl "180+1"]
[Date "2021.09.21"]
[WhiteClock "0:00:02"]
[BlackClock "0:00:47"]

1. c4 {[%clk 0:02:59]}  g6 {[%clk 0:02:50]} 2. g3 {[%clk 0:02:57]}  Bg7 {[%clk 0:02:51]} 3. Bg2 {[%clk 0:02:57]}  e5 {[%clk 0:02:51]} 4. Nc3 {[%clk 0:02:56]}  Nc6 {[%clk 0:02:51]} 5. e4 {[%clk 0:02:44]}  Nge7 {[%clk 0:02:48]} 6. Nge2 {[%clk 0:02:44]}  O-O {[%clk 0:02:47]} 7. d3 {[%clk 0:02:39]}  d6 {[%clk 0:02:46]} 8. O-O {[%clk 0:02:36]}  Nd4 {[%clk 0:02:46]} 9. b4 {[%clk 0:02:14]}  c5 {[%clk 0:02:28]} 10. a3 {[%clk 0:01:54]}  h6 {[%clk 0:02:20]} 11. Rb1 {[%clk 0:01:52]}  b6 {[%clk 0:02:16]} 12. Nd5 {[%clk 0:01:41]}  Nxd5 {[%clk 0:02:15]} 13. cxd5 {[%clk 0:01:40]}  Bd7 {[%clk 0:01:54]} 14. Nxd4 {[%clk 0:01:25]}  exd4 {[%clk 0:01:22]} 15. f4 {[%clk 0:01:17]}  b5 {[%clk 0:01:20]} 16. bxc5 {[%clk 0:01:11]}  dxc5 {[%clk 0:01:21]} 17. e5 {[%clk 0:01:11]}  Qa5 {[%clk 0:01:21]} 18. e6 {[%clk 0:00:39]}  fxe6 {[%clk 0:01:20]} 19. dxe6 {[%clk 0:00:39]}  Bxe6 {[%clk 0:01:21]} 20. Bd2 {[%clk 0:00:24]}  Qa6 {[%clk 0:01:09]} 21. Bxa8 {[%clk 0:00:23]}  Rxa8 {[%clk 0:01:10]} 22. Qf3 {[%clk 0:00:18]}  Rd8 {[%clk 0:01:10]} 23. Rbe1 {[%clk 0:00:14]}  c4 {[%clk 0:01:09]} 24. Qe4 {[%clk 0:00:09]}  Bf5 {[%clk 0:01:07]} 25. Qe7 {[%clk 0:00:09]}  Bf6 {[%clk 0:01:06]} 26. Qc5 {[%clk 0:00:07]}  c3 {[%clk 0:01:04]} 27. Bc1 {[%clk 0:00:05]}  b4 {[%clk 0:01:04]} 28. axb4 {[%clk 0:00:05]}  Qxd3 {[%clk 0:01:04]} 29. Qc6 {[%clk 0:00:03]}  Kf7 {[%clk 0:00:53]} 30. Qc7+ {[%clk 0:00:03]}  Rd7 {[%clk 0:00:54]} 31. Qc5 {[%clk 0:00:03]}  a6 {[%clk 0:00:48]} 32. Ba3 {[%clk 0:00:02]}  Qb5 {[%clk 0:00:49]} 33. Qxb5 {[%clk 0:00:01]}  axb5 {[%clk 0:00:48]} 34. h3 {[%clk 0:00:01]}  Bxh3 {[%clk 0:00:48]} 35. Rf3 {[%clk 0:00:02]}  d3 {[%clk 0:00:47]} 0-1


[Site "https://www.chess.com"]

[Event "Titled Tuesday Blitz September 21 2021"]
[White "Vogel, Roven"]
[Black "Yeritsyan, Hayk"]
[WhiteFideId "12908088"]
[BlackFideId "13307320"]
[WhiteElo "2516"]
[BlackElo "2392"]
[Result "1-0"]
[Round "01"]
[TimeControl "180+1"]
[Date "2021.09.21"]
[WhiteClock "0:00:49"]
[BlackClock "0:00:13"]

1. Nf3 {[%clk 0:02:57]}  d5 {[%clk 0:02:45]} 2. e3 {[%clk 0:02:56]}  Nf6 {[%clk 0:02:45]} 3. c4 {[%clk 0:02:56]}  c6 {[%clk 0:02:44]} 4. Nc3 {[%clk 0:02:54]}  Bf5 {[%clk 0:02:43]} 5. cxd5 {[%clk 0:02:51]}  cxd5 {[%clk 0:02:43]} 6. Qb3 {[%clk 0:02:50]}  Bc8 {[%clk 0:02:42]} 7. Bb5+ {[%clk 0:02:48]}  Bd7 {[%clk 0:02:29]} 8. Nxd5 {[%clk 0:02:45]}  Nxd5 {[%clk 0:02:23]} 9. Qxd5 {[%clk 0:02:44]}  Bxb5 {[%clk 0:02:23]} 10. Qxb5+ {[%clk 0:02:44]}  Qd7 {[%clk 0:02:24]} 11. Qxd7+ {[%clk 0:02:44]}  Nxd7 {[%clk 0:02:25]} 12. d4 {[%clk 0:02:44]}  e6 {[%clk 0:02:25]} 13. Bd2 {[%clk 0:02:44]}  Rc8 {[%clk 0:02:25]} 14. Ke2 {[%clk 0:02:41]}  Bd6 {[%clk 0:02:25]} 15. Rhc1 {[%clk 0:02:40]}  Ke7 {[%clk 0:02:25]} 16. Rxc8 {[%clk 0:02:31]}  Rxc8 {[%clk 0:02:25]} 17. Rc1 {[%clk 0:02:32]}  Rxc1 {[%clk 0:02:25]} 18. Bxc1 {[%clk 0:02:33]}  e5 {[%clk 0:02:23]} 19. dxe5 {[%clk 0:02:32]}  Nxe5 {[%clk 0:02:21]} 20. Nxe5 {[%clk 0:02:32]}  Bxe5 {[%clk 0:02:22]} 21. b3 {[%clk 0:02:31]}  g6 {[%clk 0:02:12]} 22. h3 {[%clk 0:02:29]}  f5 {[%clk 0:02:12]} 23. g4 {[%clk 0:02:28]}  Ke6 {[%clk 0:02:11]} 24. Kd3 {[%clk 0:02:24]}  Kd5 {[%clk 0:02:10]} 25. f3 {[%clk 0:02:23]}  h5 {[%clk 0:02:08]} 26. gxh5 {[%clk 0:02:22]}  gxh5 {[%clk 0:02:07]} 27. Bd2 {[%clk 0:02:19]}  b5 {[%clk 0:02:04]} 28. Bc3 {[%clk 0:02:19]}  Bd6 {[%clk 0:01:54]} 29. Bd4 {[%clk 0:02:17]}  a6 {[%clk 0:01:54]} 30. e4+ {[%clk 0:02:13]}  fxe4+ {[%clk 0:01:54]} 31. fxe4+ {[%clk 0:02:14]}  Ke6 {[%clk 0:01:52]} 32. Bf2 {[%clk 0:02:13]}  Be5 {[%clk 0:01:45]} 33. Be1 {[%clk 0:02:11]}  Bf6 {[%clk 0:01:36]} 34. Bg3 {[%clk 0:02:09]}  Bg7 {[%clk 0:01:35]} 35. Ke3 {[%clk 0:01:59]}  Bf6 {[%clk 0:01:17]} 36. Bb8 {[%clk 0:01:59]}  Bg7 {[%clk 0:01:07]} 37. a4 {[%clk 0:01:52]}  bxa4 {[%clk 0:00:54]} 38. bxa4 {[%clk 0:01:51]}  Be5 {[%clk 0:00:39]} 39. Bxe5 {[%clk 0:01:31]}  Kxe5 {[%clk 0:00:39]} 40. a5 {[%clk 0:01:21]}  Ke6 {[%clk 0:00:18]} 41. Kf4 {[%clk 0:01:19]}  Kf6 {[%clk 0:00:19]} 42. Kg3 {[%clk 0:00:58]}  Ke5 {[%clk 0:00:18]} 43. Kh4 {[%clk 0:00:58]}  Kxe4 {[%clk 0:00:17]} 44. Kxh5 {[%clk 0:00:58]}  Kf5 {[%clk 0:00:18]} 45. Kh6 {[%clk 0:00:58]}  Kf6 {[%clk 0:00:17]} 46. Kh5 {[%clk 0:00:55]}  Kf5 {[%clk 0:00:17]} 47. h4 {[%clk 0:00:44]}  Kf6 {[%clk 0:00:15]} 48. Kg4 {[%clk 0:00:45]}  Kg6 {[%clk 0:00:13]} 49. Kf4 {[%clk 0:00:46]}  Kh5 {[%clk 0:00:13]} 50. Ke5 {[%clk 0:00:47]}  Kxh4 {[%clk 0:00:14]} 51. Kd6 {[%clk 0:00:47]}  Kg5 {[%clk 0:00:15]} 52. Kc6 {[%clk 0:00:48]}  Kf6 {[%clk 0:00:16]} 53. Kb6 {[%clk 0:00:49]}  Ke6 {[%clk 0:00:17]} 54. Kxa6 {[%clk 0:00:50]}  Kd7 {[%clk 0:00:17]} 55. Kb7 {[%clk 0:00:50]}  Kd6 {[%clk 0:00:13]} 56. a6 {[%clk 0:00:49]} 1-0


[Site "https://www.chess.com"]

[Event "Titled Tuesday Blitz September 21 2021"]
[White "Vusatiuk, Vladimir"]
[Black "Visakh N R"]
[WhiteFideId "14118610"]
[BlackFideId "25012223"]
[WhiteElo "2167"]
[BlackElo "2454"]
[Result "0-1"]
[Round "01"]
[TimeControl "180+1"]
[Date "2021.09.21"]
[WhiteClock "0:00:05"]
[BlackClock "0:00:41"]

1. d4 {[%clk 0:02:46]}  d5 {[%clk 0:02:58]} 2. c4 {[%clk 0:02:46]}  c6 {[%clk 0:02:57]} 3. Nf3 {[%clk 0:02:46]}  Nf6 {[%clk 0:02:56]} 4. e3 {[%clk 0:02:47]}  Bf5 {[%clk 0:02:46]} 5. Nc3 {[%clk 0:02:45]}  e6 {[%clk 0:02:40]} 6. Bd3 {[%clk 0:02:45]}  Bg6 {[%clk 0:02:39]} 7. O-O {[%clk 0:02:45]}  Be7 {[%clk 0:02:35]} 8. Qe2 {[%clk 0:02:38]}  O-O {[%clk 0:02:28]} 9. e4 {[%clk 0:02:37]}  dxe4 {[%clk 0:02:28]} 10. Nxe4 {[%clk 0:02:38]}  Nxe4 {[%clk 0:02:28]} 11. Bxe4 {[%clk 0:02:39]}  Nd7 {[%clk 0:02:29]} 12. Bxg6 {[%clk 0:02:36]}  hxg6 {[%clk 0:02:29]} 13. Bf4 {[%clk 0:02:31]}  Qa5 {[%clk 0:02:28]} 14. a3 {[%clk 0:02:29]}  Qf5 {[%clk 0:02:25]} 15. Be3 {[%clk 0:02:20]}  e5 {[%clk 0:02:22]} 16. dxe5 {[%clk 0:02:17]}  Nxe5 {[%clk 0:02:23]} 17. Nxe5 {[%clk 0:02:16]}  Qxe5 {[%clk 0:02:23]} 18. Rfe1 {[%clk 0:02:11]}  Bf6 {[%clk 0:02:21]} 19. Rab1 {[%clk 0:01:45]}  Rfe8 {[%clk 0:02:11]} 20. h3 {[%clk 0:01:21]}  Rad8 {[%clk 0:01:57]} 21. Qc2 {[%clk 0:01:18]}  b6 {[%clk 0:01:56]} 22. b4 {[%clk 0:01:11]}  Qe4 {[%clk 0:01:52]} 23. Qxe4 {[%clk 0:00:57]}  Rxe4 {[%clk 0:01:53]} 24. c5 {[%clk 0:00:38]}  b5 {[%clk 0:01:46]} 25. Rbd1 {[%clk 0:00:38]}  Ree8 {[%clk 0:01:41]} 26. Kf1 {[%clk 0:00:34]}  g5 {[%clk 0:01:36]} 27. Bc1 {[%clk 0:00:31]}  a5 {[%clk 0:01:33]} 28. Rxe8+ {[%clk 0:00:27]}  Rxe8 {[%clk 0:01:32]} 29. Rd6 {[%clk 0:00:28]}  axb4 {[%clk 0:01:29]} 30. axb4 {[%clk 0:00:29]}  Bc3 {[%clk 0:01:22]} 31. Be3 {[%clk 0:00:28]}  Re6 {[%clk 0:01:22]} 32. Rd8+ {[%clk 0:00:26]}  Kh7 {[%clk 0:01:22]} 33. Bd2 {[%clk 0:00:26]}  Bxd2 {[%clk 0:01:15]} 34. Rxd2 {[%clk 0:00:27]}  Kg6 {[%clk 0:01:16]} 35. Rd4 {[%clk 0:00:24]}  Kf5 {[%clk 0:01:15]} 36. f3 {[%clk 0:00:23]}  Ke5 {[%clk 0:01:09]} 37. Rd1 {[%clk 0:00:21]}  Re7 {[%clk 0:01:02]} 38. Rd6 {[%clk 0:00:21]}  Re6 {[%clk 0:00:58]} 39. Rd1 {[%clk 0:00:22]}  Re7 {[%clk 0:00:46]} 40. Rd6 {[%clk 0:00:22]}  Ra7 {[%clk 0:00:47]} 41. Rxc6 {[%clk 0:00:22]}  Kf4 {[%clk 0:00:47]} 42. Rb6 {[%clk 0:00:20]}  Ke3 {[%clk 0:00:46]} 43. Kg1 {[%clk 0:00:20]}  Ra1+ {[%clk 0:00:45]} 44. Kh2 {[%clk 0:00:20]}  Kf2 {[%clk 0:00:46]} 45. Rxb5 {[%clk 0:00:20]}  Rg1 {[%clk 0:00:45]} 46. g4 {[%clk 0:00:17]}  Rg2+ {[%clk 0:00:44]} 47. Kh1 {[%clk 0:00:18]}  Kg3 {[%clk 0:00:44]} 48. c6 {[%clk 0:00:15]}  Rd2 {[%clk 0:00:42]} 49. Rd5 {[%clk 0:00:05]}  Rxd5 {[%clk 0:00:41]} 0-1


[Site "https://www.chess.com"]

[Event "Titled Tuesday Blitz September 21 2021"]
[White "Weetik, Vjacheslav"]
[Black "Meduri, Aakaash"]
[WhiteFideId "4153472"]
[BlackFideId "2032252"]
[WhiteElo "2469"]
[BlackElo "2047"]
[Result "1-0"]
[Round "01"]
[TimeControl "180+1"]
[Date "2021.09.21"]
[WhiteClock "0:00:03"]
[BlackClock "0:00:07"]

1. d4 {[%clk 0:02:06]}  Nf6 {[%clk 0:02:58]} 2. Bf4 {[%clk 0:02:05]}  d6 {[%clk 0:02:58]} 3. Nf3 {[%clk 0:02:05]}  g6 {[%clk 0:02:58]} 4. c4 {[%clk 0:02:04]}  Bg7 {[%clk 0:02:58]} 5. Nc3 {[%clk 0:02:05]}  O-O {[%clk 0:02:58]} 6. e3 {[%clk 0:02:05]}  Nbd7 {[%clk 0:02:57]} 7. h3 {[%clk 0:02:05]}  c6 {[%clk 0:02:54]} 8. Be2 {[%clk 0:02:04]}  Re8 {[%clk 0:02:54]} 9. O-O {[%clk 0:02:04]}  Qc7 {[%clk 0:02:50]} 10. Bh2 {[%clk 0:02:04]}  a6 {[%clk 0:02:50]} 11. c5 {[%clk 0:02:03]}  Qa5 {[%clk 0:02:47]} 12. cxd6 {[%clk 0:02:02]}  exd6 {[%clk 0:02:36]} 13. Bxd6 {[%clk 0:02:02]}  Nb6 {[%clk 0:02:36]} 14. Qb3 {[%clk 0:01:14]}  Be6 {[%clk 0:02:31]} 15. Qa3 {[%clk 0:01:10]}  Qxa3 {[%clk 0:02:30]} 16. Bxa3 {[%clk 0:01:11]}  Nc4 {[%clk 0:02:29]} 17. Bxc4 {[%clk 0:01:11]}  Bxc4 {[%clk 0:02:30]} 18. Rfc1 {[%clk 0:01:11]}  Rad8 {[%clk 0:02:26]} 19. Ne5 {[%clk 0:01:06]}  Be6 {[%clk 0:02:25]} 20. Bc5 {[%clk 0:01:00]}  Nd5 {[%clk 0:02:02]} 21. Nf3 {[%clk 0:00:54]}  f5 {[%clk 0:01:59]} 22. a4 {[%clk 0:00:42]}  h6 {[%clk 0:01:52]} 23. a5 {[%clk 0:00:39]}  Kh7 {[%clk 0:01:51]} 24. Ra4 {[%clk 0:00:31]}  Bh8 {[%clk 0:01:42]} 25. Ne5 {[%clk 0:00:26]}  Bxe5 {[%clk 0:01:18]} 26. dxe5 {[%clk 0:00:25]}  Nxc3 {[%clk 0:01:19]} 27. bxc3 {[%clk 0:00:23]}  Rd5 {[%clk 0:01:16]} 28. Bd6 {[%clk 0:00:21]}  Rb5 {[%clk 0:01:06]} 29. c4 {[%clk 0:00:18]}  Rb2 {[%clk 0:01:04]} 30. Rb4 {[%clk 0:00:11]}  Rxb4 {[%clk 0:01:03]} 31. Bxb4 {[%clk 0:00:12]}  Rd8 {[%clk 0:00:59]} 32. Bd6 {[%clk 0:00:12]}  Rd7 {[%clk 0:00:58]} 33. f3 {[%clk 0:00:12]}  g5 {[%clk 0:00:57]} 34. g4 {[%clk 0:00:11]}  Kg6 {[%clk 0:00:57]} 35. Kg2 {[%clk 0:00:10]}  h5 {[%clk 0:00:58]} 36. gxf5+ {[%clk 0:00:10]}  Kxf5 {[%clk 0:00:56]} 37. Kg3 {[%clk 0:00:05]}  Rg7 {[%clk 0:00:33]} 38. e4+ {[%clk 0:00:05]}  Kg6 {[%clk 0:00:33]} 39. c5 {[%clk 0:00:03]}  Rf7 {[%clk 0:00:33]} 40. Rc3 {[%clk 0:00:03]}  Rf4 {[%clk 0:00:26]} 41. Re3 {[%clk 0:00:02]}  Rf7 {[%clk 0:00:26]} 42. h4 {[%clk 0:00:02]}  g4 {[%clk 0:00:24]} 43. f4 {[%clk 0:00:02]}  Bc4 {[%clk 0:00:15]} 44. f5+ {[%clk 0:00:02]}  Kg7 {[%clk 0:00:15]} 45. Kf4 {[%clk 0:00:03]}  Rd7 {[%clk 0:00:14]} 46. Kg5 {[%clk 0:00:03]}  g3 {[%clk 0:00:08]} 47. Rxg3 {[%clk 0:00:03]}  Be2 {[%clk 0:00:09]} 48. e6 {[%clk 0:00:03]}  Rd8 {[%clk 0:00:09]} 49. f6+ {[%clk 0:00:02]}  Kh7 {[%clk 0:00:09]} 50. f7 {[%clk 0:00:03]}  Kg7 {[%clk 0:00:09]} 51. Kf4+ {[%clk 0:00:02]}  Kf6 {[%clk 0:00:09]} 52. f8=Q+ {[%clk 0:00:02]}  Rxf8 {[%clk 0:00:09]} 53. Bxf8 {[%clk 0:00:02]}  Kxe6 {[%clk 0:00:08]} 54. Bd6 {[%clk 0:00:02]}  Bc4 {[%clk 0:00:07]} 55. Rg7 {[%clk 0:00:03]}  Kf6 {[%clk 0:00:07]} 56. Rxb7 {[%clk 0:00:03]}  Bb5 {[%clk 0:00:08]} 57. e5+ {[%clk 0:00:03]}  Ke6 {[%clk 0:00:08]} 58. Ke4 {[%clk 0:00:03]}  Bc4 {[%clk 0:00:07]} 59. Re7# {[%clk 0:00:03]} 1-0


[Site "https://www.chess.com"]